[Event "RUS-ch Women Blitz 2019"]
[Site "Sochi"]
[Date "2019.10.17"]
[Round "4.11"]
[White "Trapeznikova, Darya"]
[Black "Ambartsumova, Karina"]
[Result "0-1"]
[ECO "A05"]
[WhiteElo "2065"]
[BlackElo "2341"]
[Annotator "NA"]
[PlyCount "108"]
[EventDate "2019.10.17"]
[EventType "swiss"]
[EventCountry "RUS"]
[SourceTitle "playchess.com"]
[Source "ChessBase"]
[SourceQuality "1"]
[TimeControl "180+2"]

1. Nf3 {[%emt 0:00:00]} Nf6 {[%emt 0:00:00]} 2. c4 {[%emt 0:00:01]} g6 {[%emt 0:00:04]} 3. Nc3 {[%emt 0:00:01]} Bg7 {[%emt 0:00:01]} 4. d4 {[%emt 0:00:01]} O-O {[%emt 0:00:02]} 5. Bf4 {[%emt 0:00:02]} d6 {[%emt 0:00:03]} 6. e3 {[%emt 0:00:01]} Nc6 {[%emt 0:00:08]} 7. h3 {[%emt 0:00:20]} Nd7 {[%emt 0:00:01]} 8. Be2 {[%emt 0:00:07]} e5 {[%emt 0:00:01]} 9. Bh2 {[%emt 0:00:10]} Re8 {[%emt 0:00:10]} 10. O-O {[%emt 0:00:05]} e4 {[%emt 0:00:01]} 11. Nd2 {[%emt 0:00:02]} f5 {[%emt 0:00:01]} 12. a3 {[%emt 0:00:24]} Nf6 {[%emt 0:00:03]} 13. b4 {[%emt 0:00:03]} Ne7 {[%emt 0:00:56]} 14. c5 {[%emt 0:00:15]} dxc5 {[%emt 0:00:29]} 15. Qb3+ {[%emt 0:00:27]} Kh8 {[%emt 0:00:07]} 16. bxc5 {[%emt 0:00:02]} Ned5 {[%emt 0:00:15]} 17. Bc4 {[%emt 0:00:31]} c6 {[%emt 0:00:05]} 18. Nxd5 {[%emt 0:00:02]} cxd5 {[%emt 0:00:05]} 19. Be2 {[%emt 0:00:07]} g5 {[%emt 0:00:20]} 20. Rac1 {[%emt 0:00:10]} Re6 {[%emt 0:00:09]} 21. Bb5 $14 {[%emt 0:00:21]} (21. Nb1 $16) 21... Bd7 {[%emt 0:00:16]} 22. Bxd7 Qxd7 {[%emt 0:00:01]} 23. Rb1 b6 24. cxb6 {[%emt 0:00:10]} axb6 {[%emt 0:00:08]} 25. Rfc1 {[%emt 0:00:08]} Ne8 {[%emt 0:00:00]} 26. Qb4 {[%emt 0:00:06]} Kg8 {[%emt 0:00:03]} 27. Rc2 {[%emt 0:00:12]} Bf8 {[%emt 0:00:02]} 28. Qb3 {[%emt 0:00:05]} Rxa3 {[%emt 0:00:01]} 29. Qb5 {[%emt 0:00:02]} Qxb5 {[%emt 0:00:02]} 30. Rxb5 {[%emt 0:00:01]} Ra1+ {[%emt 0:00:01]} 31. Rb1 {[%emt 0:00:00]} Rxb1+ {[%emt 0:00:05]} 32. Nxb1 {[%emt 0:00:01]} b5 {[%emt 0:00:15]} 33. Nc3 {[%emt 0:00:04]} Rc6 {[%emt 0:00:00]} 34. Rc1 {[%emt 0:00:02]} b4 {[%emt 0:00:02]} 35. Ne2 {[%emt 0:00:03]} Rxc1+ {[%emt 0:00:01]} 36. Nxc1 {[%emt 0:00:01]} Kf7 {[%emt 0:00:01]} 37. Nb3 {[%emt 0:00:01]} Ke6 {[%emt 0:00:01]} 38. Kf1 {[%emt 0:00:01]} Bd6 {[%emt 0:00:02]} 39. Bxd6 {[%emt 0:00:02]} Kxd6 {[%emt 0:00:02]} 40. Ke2 {[%emt 0:00:01]} Kc6 {[%emt 0:00:01]} 41. Kd2 {[%emt 0:00:02]} Nc7 {[%emt 0:00:03]} 42. Nc5 {[%emt 0:00:04]} Kb5 {[%emt 0:00:03]} 43. Kc2 {[%emt 0:00:04]} Kc4 {[%emt 0:00:01]} 44. f3 {[%emt 0:00:02]} Nb5 {[%emt 0:00:05]} 45. fxe4 {[%emt 0:00:02]} fxe4 {[%emt 0:00:02]} 46. Ne6 {[%emt 0:00:02]} h6 {[%emt 0:00:04]} 47. Nd8 {[%emt 0:00:03]} b3+ {[%emt 0:00:01]} 48. Kb2 {[%emt 0:00:01]} Nc3 {[%emt 0:00:01]} 49. Nb7 {[%emt 0:00:02]} Nd1+ {[%emt 0:00:00]} 50. Kc1 {[%emt 0:00:02]} Nxe3 {[%emt 0:00:02]} 51. Na5+ {[%emt 0:00:01]} Kc3 {[%emt 0:00:02]} 52. Kb1 {[%emt 0:00:03]} Nc4 {[%emt 0:00:01]} 53. Nc6 {[%emt 0:00:01]} Nd2+ {[%emt 0:00:02]} 54. Kc1 {[%emt 0:00:01]} b2+ {[%emt 0:00:01]} 0-1

[Event "RUS-ch Women Blitz 2019"]
[Site "Sochi"]
[Date "2019.10.17"]
[Round "4.12"]
[White "Guseva, Marina"]
[Black "Gutkovich, Polina"]
[Result "1-0"]
[ECO "A65"]
[WhiteElo "2366"]
[BlackElo "2105"]
[Annotator "NA"]
[PlyCount "61"]
[EventDate "2019.10.17"]
[EventType "swiss"]
[EventCountry "RUS"]
[SourceTitle "playchess.com"]
[Source "ChessBase"]
[SourceQuality "1"]
[TimeControl "180+2"]

1. d4 {[%emt 0:00:00]} Nf6 {[%emt 0:00:00]} 2. c4 e6 3. Nc3 {[%emt 0:00:01]} c5 {[%emt 0:00:00]} 4. d5 {[%emt 0:00:01]} exd5 5. cxd5 {[%emt 0:00:01]} d6 {[%emt 0:00:00]} 6. e4 {[%emt 0:00:02]} g6 {[%emt 0:00:01]} 7. Bd3 {[%emt 0:00:01]} Bg7 {[%emt 0:00:01]} 8. h3 {[%emt 0:00:01]} O-O {[%emt 0:00:05]} 9. Nf3 {[%emt 0:00:01]} Re8 {[%emt 0:00:07]} 10. O-O {[%emt 0:00:05]} Na6 {[%emt 0:00:01]} 11. Re1 {[%emt 0:00:07]} Nc7 {[%emt 0:00:02]} 12. a4 {[%emt 0:00:05]} a6 {[%emt 0:00:06]} 13. Bf4 {[%emt 0:00:06]} Rb8 {[%emt 0:00:06]} 14. a5 {[%emt 0:00:02]} Bf8 {[%emt 0:00:02]} 15. Bc4 {[%emt 0:00:10]} Bd7 {[%emt 0:00:04]} 16. e5 {[%emt 0:00:34]} Nh5 {[%emt 0:00:02]} 17. Bh2 {[%emt 0:00:12]} Bb5 {[%emt 0:00:13]} 18. b3 {[%emt 0:00:14]} dxe5 {[%emt 0:01:38]} 19. Nxe5 {[%emt 0:00:04]} Bd6 {[%emt 0:00:08]} 20. Qd2 {[%emt 0:01:07]} Ng7 $16 {[%emt 0:00:45]} 21. Rad1 {[%emt 0:00:07]} Nf5 {[%emt 0:00:02]} 22. Bf4 {[%emt 0:00:05]} Nd4 {[%emt 0:00:06]} 23. Ng4 {[%emt 0:00:24]} Bxf4 {[%emt 0:00:11]} 24. Qxf4 {[%emt 0:00:01]} f5 {[%emt 0:00:04]} 25. Ne5 {[%emt 0:00:09]} Bxc4 {[%emt 0:00:01]} 26. bxc4 {[%emt 0:00:03]} b5 {[%emt 0:00:03]} 27. axb6 {[%emt 0:00:03]} Rxb6 {[%emt 0:00:00]} 28. Na4 {[%emt 0:00:05]} Rb4 {[%emt 0:00:02]} 29. Nxc5 {[%emt 0:00:01]} Rxc4 {[%emt 0:00:02]} 30. Nxc4 {[%emt 0:00:02]} Nxd5 {[%emt 0:00:03]} 31. Qxd4 {[%emt 0:00:04]} 1-0

[Event "RUS-ch Women Blitz 2019"]
[Site "Sochi"]
[Date "2019.10.17"]
[Round "5.1"]
[White "Kovanova, Baira"]
[Black "Voit, Daria"]
[Result "1/2-1/2"]
[ECO "A05"]
[WhiteElo "2344"]
[BlackElo "2336"]
[Annotator "NA RC"]
[PlyCount "73"]
[EventDate "2019.10.17"]
[EventType "swiss"]
[EventCountry "RUS"]
[SourceTitle "playchess.com"]
[Source "ChessBase"]
[SourceQuality "1"]
[TimeControl "180+2"]

1. Nf3 {[%emt 0:00:00]} Nf6 {[%emt 0:00:00]} 2. g3 {[%emt 0:00:01]} g6 {[%emt 0:00:01]} 3. Bg2 {[%emt 0:00:00]} Bg7 {[%emt 0:00:01]} 4. O-O {[%emt 0:00:02]} O-O {[%emt 0:00:02]} 5. c4 {[%emt 0:00:05]} c6 {[%emt 0:00:01]} 6. Nc3 {[%emt 0:00:07]} d5 {[%emt 0:00:02]} 7. cxd5 {[%emt 0:00:03]} cxd5 {[%emt 0:00:01]} 8. d4 {[%emt 0:00:01]} e6 {[%emt 0:00:03]} 9. Ne5 {[%emt 0:00:03]} Nfd7 {[%emt 0:00:01]} 10. f4 {[%emt 0:00:09]} Nc6 {[%emt 0:00:01]} 11. e3 {[%emt 0:00:14]} Nb6 {[%emt 0:00:03]} 12. b3 {[%emt 0:00:02]} Bd7 {[%emt 0:00:27]} 13. Ba3 {[%emt 0:00:03]} Re8 {[%emt 0:00:01]} 14. Qe2 {[%emt 0:00:30]} Bf8 {[%emt 0:00:14]} 15. Bb2 {[%emt 0:00:32]} Nc8 {[%emt 0:00:16]} 16. Rac1 {[%emt 0:00:15]} Nd6 {[%emt 0:00:07]} 17. Ba3 {[%emt 0:00:21]} f6 {[%emt 0:00:13]} 18. Nd3 {[%emt 0:00:06]} Kg7 {[%emt 0:00:32]} 19. Bb2 {[%emt 0:00:13]} b6 {[%emt 0:00:20]} 20. Qf2 {[%emt 0:00:01]} Rc8 {[%emt 0:00:03]} 21. e4 {[%emt 0:00:04]} dxe4 {[%emt 0:00:06]} 22. Nxe4 {[%emt 0:00:11]} Nxe4 {[%emt 0:00:04]} 23. Bxe4 {[%emt 0:00:02]} Nb4 {[%emt 0:00:03]} 24. Rxc8 {[%emt 0:00:17]} Qxc8 {[%emt 0:00:05]} 25. Rc1 {[%emt 0:00:01]} Nxd3 {[%emt 0:00:10]} 26. Bxd3 {[%emt 0:00:11]} Qb7 {[%emt 0:00:01]} 27. Bf1 {[%emt 0:00:09]} Bc6 {[%emt 0:00:05]} 28. Bg2 {[%emt 0:00:04]} Bd5 {[%emt 0:00:17]} 29. Bxd5 {[%emt 0:00:05]} Qxd5 {[%emt 0:00:01]} 30. Rc7+ {[%emt 0:00:01]} Re7 {[%emt 0:00:01]} 31. Rc8 {[%emt 0:00:01]} Rd7 {[%emt 0:00:10]} 32. Qg2 {[%emt 0:00:02]} Qxg2+ {[%emt 0:00:16]} 33. Kxg2 {[%emt 0:00:01]} e5 {[%emt 0:00:02]} 34. fxe5 {[%emt 0:00:05]} fxe5 {[%emt 0:00:01]} 35. Rc4 {[%emt 0:00:04]} exd4 {[%emt 0:00:12]} 36. Rxd4 {[%emt 0:00:02]} Rxd4 {[%emt 0:00:04]} 37. Bxd4+ {[%emt 0:00:00]} 1/2-1/2

[Event "RUS-ch Women Blitz 2019"]
[Site "Sochi"]
[Date "2019.10.20"]
[Round "5.3"]
[White "Guseva, Marina"]
[Black "Zavivaeva, Emilia"]
[Result "1-0"]
[ECO "D45"]
[WhiteElo "2366"]
[BlackElo "1808"]
[Annotator "NA"]
[PlyCount "54"]
[EventDate "2019.10.17"]
[EventType "swiss"]
[EventCountry "RUS"]
[SourceTitle "playchess.com"]
[Source "ChessBase"]
[SourceQuality "1"]
[TimeControl "180+2"]

1. d4 {[%emt 0:00:00]} d5 {[%emt 0:00:01]} 2. c4 {[%emt 0:00:01]} c6 {[%emt 0:00:01]} 3. Nc3 {[%emt 0:00:01]} Nf6 {[%emt 0:00:01]} 4. e3 {[%emt 0:00:01]} e6 {[%emt 0:00:02]} 5. Nf3 {[%emt 0:00:01]} Bd6 {[%emt 0:00:05]} 6. Bd3 {[%emt 0:00:03]} O-O {[%emt 0:00:03]} 7. O-O {[%emt 0:00:04]} Nbd7 {[%emt 0:00:02]} 8. e4 {[%emt 0:00:02]} dxe4 {[%emt 0:00:10]} 9. Nxe4 {[%emt 0:00:01]} Nxe4 {[%emt 0:00:04]} 10. Bxe4 {[%emt 0:00:01]} Nf6 {[%emt 0:00:21]} 11. Bc2 {[%emt 0:00:03]} c5 {[%emt 0:00:11]} 12. Bg5 {[%emt 0:00:03]} h6 {[%emt 0:00:12]} 13. Bh4 {[%emt 0:00:06]} cxd4 {[%emt 0:00:33]} 14. Qd3 {[%emt 0:00:02]} g6 {[%emt 0:00:09]} 15. Nxd4 {[%emt 0:00:49]} Be7 {[%emt 0:00:32]} 16. Rad1 {[%emt 0:00:09]} e5 {[%emt 0:00:21]} 17. Nb5 {[%emt 0:00:04]} Be6 {[%emt 0:00:26]} 18. Qf3 {[%emt 0:00:26]} Qb6 {[%emt 0:00:12]} 19. Bxf6 {[%emt 0:00:06]} Bxf6 {[%emt 0:00:03]} 20. Qxf6 {[%emt 0:00:02]} Bxc4 {[%emt 0:00:03]} 21. Qxb6 {[%emt 0:00:11]} axb6 {[%emt 0:00:01]} 22. Bd3 {[%emt 0:00:01]} Bxd3 {[%emt 0:00:06]} 23. Rxd3 {[%emt 0:00:01]} Rxa2 {[%emt 0:00:01]} 24. Rb3 {[%emt 0:00:01]} Rc8 {[%emt 0:00:03]} 25. Nc3 {[%emt 0:00:03]} Ra6 {[%emt 0:00:03]} 26. Rd1 {[%emt 0:00:02]} b5 {[%emt 0:00:03]} 27. Rxb5 {[%emt 0:00:03]} Rac6 {[%emt 0:00:05]} 1-0

[Event "RUS-ch Women Blitz 2019"]
[Site "Sochi"]
[Date "2019.10.17"]
[Round "5.3"]
[White "Karavaeva, Olga"]
[Black "Larina, Maria"]
[Result "1-0"]
[ECO "A10"]
[WhiteElo "2260"]
[BlackElo "1948"]
[Annotator "NA"]
[PlyCount "87"]
[EventDate "2019.10.17"]
[EventType "swiss"]
[EventCountry "RUS"]
[SourceTitle "playchess.com"]
[Source "ChessBase"]
[SourceQuality "1"]
[TimeControl "180+2"]

1. c4 {[%emt 0:00:00]} f5 {[%emt 0:00:00]} 2. Nc3 Nf6 3. g3 {[%emt 0:00:01]} g6 {[%emt 0:00:00]} 4. Bg2 Bg7 5. Nf3 {[%emt 0:00:09]} d6 {[%emt 0:00:01]} 6. d3 {[%emt 0:00:06]} O-O {[%emt 0:00:04]} 7. O-O {[%emt 0:00:02]} e5 {[%emt 0:00:12]} 8. Rb1 {[%emt 0:00:03]} a5 {[%emt 0:00:41]} 9. a3 {[%emt 0:00:01]} c6 {[%emt 0:00:16]} 10. Qc2 {[%emt 0:00:03]} Na6 {[%emt 0:00:04]} 11. b4 {[%emt 0:00:05]} axb4 {[%emt 0:00:01]} 12. axb4 {[%emt 0:00:01]} Qe7 {[%emt 0:00:04]} 13. b5 {[%emt 0:00:04]} Nc5 {[%emt 0:00:11]} 14. Be3 {[%emt 0:00:11]} Bd7 {[%emt 0:00:18]} 15. Rfd1 {[%emt 0:00:08]} Ng4 {[%emt 0:00:02]} 16. Bxc5 {[%emt 0:00:08]} dxc5 {[%emt 0:00:03]} 17. bxc6 {[%emt 0:00:05]} bxc6 {[%emt 0:00:17]} 18. h3 {[%emt 0:00:14]} Nf6 {[%emt 0:00:02]} 19. Rb7 {[%emt 0:00:02]} Qe8 {[%emt 0:00:12]} 20. Rdb1 {[%emt 0:00:10]} h6 {[%emt 0:00:04]} 21. Na4 {[%emt 0:00:13]} Bc8 {[%emt 0:00:05]} 22. Rc7 {[%emt 0:00:04]} Ra5 {[%emt 0:00:07]} 23. Rb8 {[%emt 0:00:21]} Qe6 {[%emt 0:00:06]} 24. Nh4 {[%emt 0:00:17]} Nd7 {[%emt 0:00:01]} 25. Rbxc8 {[%emt 0:00:04]} e4 {[%emt 0:00:09]} 26. Rxf8+ {[%emt 0:00:09]} Nxf8 {[%emt 0:00:05]} 27. dxe4 {[%emt 0:00:09]} fxe4 {[%emt 0:00:07]} 28. Rxg7+ {[%emt 0:00:12]} Kxg7 {[%emt 0:00:03]} 29. Qc3+ {[%emt 0:00:01]} Qf6 {[%emt 0:00:07]} 30. Qxa5 g5 31. Qc7+ {[%emt 0:00:07]} Kg8 {[%emt 0:00:07]} 32. Nxc5 {[%emt 0:00:19]} gxh4 {[%emt 0:00:05]} 33. Nxe4 {[%emt 0:00:03]} Qa1+ {[%emt 0:00:03]} 34. Kh2 {[%emt 0:00:01]} hxg3+ {[%emt 0:00:01]} 35. fxg3 {[%emt 0:00:01]} Qd4 {[%emt 0:00:12]} 36. Qxc6 {[%emt 0:00:07]} Qe3 {[%emt 0:00:03]} 37. Qd5+ {[%emt 0:00:04]} Kg7 {[%emt 0:00:04]} 38. Qe5+ {[%emt 0:00:02]} Kg6 {[%emt 0:00:08]} 39. Qf6+ {[%emt 0:00:05]} Kh7 {[%emt 0:00:06]} 40. Qxf8 {[%emt 0:00:05]} h5 {[%emt 0:00:04]} 41. Qf7+ {[%emt 0:00:03]} Kh8 {[%emt 0:00:02]} 42. Qxh5+ {[%emt 0:00:03]} Kg7 {[%emt 0:00:02]} 43. Qg5+ {[%emt 0:00:02]} Qxg5 {[%emt 0:00:03]} 44. Nxg5 {[%emt 0:00:00]} 1-0

[Event "RUS-ch Women Blitz 2019"]
[Site "Sochi"]
[Date "2019.10.20"]
[Round "5.5"]
[White "Lagno, Kateryna"]
[Black "Badelka, Olga"]
[Result "1-0"]
[ECO "B32"]
[WhiteElo "2587"]
[BlackElo "2150"]
[Annotator "ChessBase"]
[PlyCount "61"]
[EventDate "2019.10.17"]
[EventType "swiss"]
[EventCountry "RUS"]
[SourceTitle "playchess.com"]
[Source "ChessBase"]
[SourceQuality "1"]
[TimeControl "180+2"]

1. e4 {[%emt 0:00:00]} c5 {[%emt 0:00:00]} 2. Nf3 {[%emt 0:00:01]} Nc6 {[%emt 0:00:00]} 3. d4 {[%emt 0:00:01]} cxd4 {[%emt 0:00:00]} 4. Nxd4 {[%emt 0:00:01]} e5 {[%emt 0:00:00]} 5. Nb5 {[%emt 0:00:03]} d6 {[%emt 0:00:01]} 6. N1c3 {[%emt 0:00:06]} a6 {[%emt 0:00:01]} 7. Na3 {[%emt 0:00:02]} Be7 {[%emt 0:00:01]} 8. Be3 {[%emt 0:00:14]} Nf6 {[%emt 0:00:23]} 9. Be2 {[%emt 0:00:04]} O-O {[%emt 0:00:20]} 10. Nc4 {[%emt 0:00:06]} b5 {[%emt 0:00:04]} 11. Nb6 {[%emt 0:00:02]} Rb8 {[%emt 0:00:02]} 12. Nxc8 {[%emt 0:00:02]} Rxc8 {[%emt 0:00:17]} 13. O-O {[%emt 0:00:03]} Na5 {[%emt 0:00:41]} 14. a4 {[%emt 0:00:14]} Nc4 {[%emt 0:00:12]} 15. Bxc4 {[%emt 0:00:32]} bxc4 {[%emt 0:00:06]} 16. Qe2 {[%emt 0:00:08]} Qa5 {[%emt 0:00:05]} 17. Bd2 {[%emt 0:00:17]} Qb6 {[%emt 0:00:06]} 18. Rab1 {[%emt 0:00:16]} Rfd8 {[%emt 0:00:04]} 19. b4 {[%emt 0:00:18]} cxb3 {[%emt 0:00:13]} 20. cxb3 {[%emt 0:00:01]} d5 {[%emt 0:00:23]} 21. exd5 {[%emt 0:00:05]} Nxd5 {[%emt 0:00:01]} 22. Nxd5 {[%emt 0:00:05]} Rxd5 {[%emt 0:00:00]} 23. b4 {[%emt 0:00:17]} Rc2 {[%emt 0:00:20]} 24. Be3 {[%emt 0:00:02]} Rxe2 {[%emt 0:00:14]} 25. Bxb6 {[%emt 0:00:01]} Ra2 {[%emt 0:00:03]} 26. a5 {[%emt 0:00:02]} f6 {[%emt 0:00:04]} 27. Rfc1 {[%emt 0:00:07]} Kf7 {[%emt 0:00:04]} 28. Rc7 {[%emt 0:00:06]} Ke6 {[%emt 0:00:01]} 29. h3 {[%emt 0:00:02]} Ra4 {[%emt 0:00:03]} 30. Ra7 {[%emt 0:00:03]} Rxb4 {[%emt 0:00:03]} 31. Rxe7+ {[%emt 0:00:02]} 1-0

[Event "RUS-ch Women Blitz 2019"]
[Site "Sochi"]
[Date "2019.10.17"]
[Round "5.6"]
[White "Gvanceladze, Anna"]
[Black "Bivol, Alina"]
[Result "0-1"]
[ECO "E68"]
[WhiteElo "2270"]
[BlackElo "2371"]
[Annotator "NA RC"]
[PlyCount "78"]
[EventDate "2019.10.17"]
[EventType "swiss"]
[EventCountry "RUS"]
[SourceTitle "playchess.com"]
[Source "ChessBase"]
[SourceQuality "1"]
[TimeControl "180+2"]

1. d4 {[%emt 0:00:00]} Nf6 {[%emt 0:00:00]} 2. Nf3 {[%emt 0:00:01]} g6 {[%emt 0:00:00]} 3. c4 {[%emt 0:00:03]} Bg7 {[%emt 0:00:00]} 4. g3 {[%emt 0:00:01]} O-O {[%emt 0:00:02]} 5. Bg2 {[%emt 0:00:01]} d6 {[%emt 0:00:01]} 6. Nc3 {[%emt 0:00:04]} Nbd7 {[%emt 0:00:01]} 7. O-O {[%emt 0:00:05]} e5 {[%emt 0:00:00]} 8. e4 {[%emt 0:00:05]} exd4 {[%emt 0:00:02]} 9. Nxd4 {[%emt 0:00:02]} Re8 {[%emt 0:00:01]} 10. Re1 {[%emt 0:00:06]} Nc5 {[%emt 0:00:01]} 11. h3 {[%emt 0:00:23]} Bd7 {[%emt 0:00:01]} 12. b3 {[%emt 0:00:43]} a5 {[%emt 0:00:01]} 13. Bb2 {[%emt 0:00:01] E68: King's Indian: Fianchetto: 6...Nbd7 7 0-0 e5 8 e4} Qc8 {[%emt 0:00:01]} 14. Kh2 {[%emt 0:00:03]} h5 $146 {[%emt 0:00:04]} ({Predecessor:} 14... a4 15. Rb1 axb3 16. axb3 h5 17. b4 Ne6 {½-½ (17) Michel Yunis,C (2368)-Valenzuela Fuentealba,L (2496) Antofagasta 2012}) 15. Qd2 {[%emt 0:00:32]} a4 {[%emt 0:00:33]} 16. b4 {[%emt 0:00:07]} a3 {[%emt 0:00:01]} 17. Bc1 {[%emt 0:00:26]} Na4 {[%emt 0:00:01]} 18. Rb1 {[%emt 0:00:13]} Nxc3 {[%emt 0:00:04]} 19. Qxc3 {[%emt 0:00:00]} c5 {[%emt 0:00:01]} 20. bxc5 {[%emt 0:00:11]} dxc5 {[%emt 0:00:01]} 21. Nb5 {[%emt 0:00:02] [#]} Ng4+ $1 {[%emt 0:00:21] Discovered Attack} 22. hxg4 {[%emt 0:00:08]} Bxc3 {[%emt 0:00:01]} 23. Nxc3 {[%emt 0:00:01]} Bxg4 {[%emt 0:00:01]} 24. Nd5 {[%emt 0:00:04]} Ra6 {[%emt 0:00:14]} 25. Bg5 {[%emt 0:00:09]} Kh7 {[%emt 0:00:41]} 26. Nf6+ {[%emt 0:00:03] [#]} Rxf6 $1 {[%emt 0:00:01]} 27. Bxf6 {[%emt 0:00:01]} Qe6 {[%emt 0:00:07]} 28. e5 {[%emt 0:00:09]} Qxc4 {[%emt 0:00:01]} 29. Rb3 {[%emt 0:00:03]} b5 {[%emt 0:00:09]} 30. Rxa3 {[%emt 0:00:05]} Be6 {[%emt 0:00:01]} 31. Ra7 $2 {[%emt 0:00:03]} (31. Rd1 {was necessary.}) 31... Qc2 {[%emt 0:00:08]} 32. Kg1 {[%emt 0:00:04]} c4 {[%emt 0:00:07]} 33. Be4 {[%emt 0:00:01]} Qd2 {[%emt 0:00:03]} 34. Rb1 {[%emt 0:00:01]} c3 {[%emt 0:00:06]} 35. Rc7 {[%emt 0:00:02]} Rc8 {[%emt 0:00:05]} 36. Rxc8 {[%emt 0:00:04]} Bxc8 {[%emt 0:00:00]} 37. Rxb5 {[%emt 0:00:01]} Qe1+ {[%emt 0:00:01]} 38. Kh2 {[%emt 0:00:01]} Qxe4 {[%emt 0:00:01]} 39. Rc5 {[%emt 0:00:03]} Bb7 {[%emt 0:00:12]} 0-1

[Event "RUS-ch Women Blitz 2019"]
[Site "Sochi"]
[Date "2019.10.20"]
[Round "5.7"]
[White "Gritsayeva, Oksana"]
[Black "Chan, Naruna"]
[Result "1/2-1/2"]
[ECO "B31"]
[WhiteElo "2370"]
[BlackElo "1936"]
[Annotator "NA"]
[PlyCount "95"]
[EventDate "2019.10.17"]
[EventType "swiss"]
[EventCountry "RUS"]
[SourceTitle "playchess.com"]
[Source "ChessBase"]
[SourceQuality "1"]
[TimeControl "180+2"]

1. e4 {[%emt 0:00:00]} c5 {[%emt 0:00:00]} 2. Nf3 {[%emt 0:00:00]} Nc6 {[%emt 0:00:01]} 3. Bb5 {[%emt 0:00:01]} g6 {[%emt 0:00:07]} 4. Bxc6 {[%emt 0:00:02]} bxc6 {[%emt 0:00:03]} 5. O-O {[%emt 0:00:02]} Bg7 {[%emt 0:00:05]} 6. Re1 {[%emt 0:00:01]} d6 {[%emt 0:00:35]} 7. h3 {[%emt 0:00:17]} Nh6 {[%emt 0:00:04]} 8. c3 {[%emt 0:00:05]} f6 {[%emt 0:00:05]} 9. d4 {[%emt 0:00:01]} cxd4 {[%emt 0:00:01]} 10. cxd4 {[%emt 0:00:01]} Nf7 {[%emt 0:00:08]} 11. Nc3 {[%emt 0:00:02]} Rb8 {[%emt 0:00:03]} 12. b3 {[%emt 0:00:02]} O-O {[%emt 0:00:05]} 13. Qc2 {[%emt 0:00:17]} e5 {[%emt 0:00:15]} 14. Bb2 {[%emt 0:00:14]} Qb6 {[%emt 0:00:31]} 15. Rad1 {[%emt 0:00:01]} Bb7 {[%emt 0:00:12]} 16. Qd2 {[%emt 0:00:24]} Rbd8 {[%emt 0:00:05]} 17. Na4 {[%emt 0:00:09]} Qb5 {[%emt 0:00:15]} 18. Qe2 {[%emt 0:00:13]} Qxe2 {[%emt 0:00:04]} 19. Rxe2 {[%emt 0:00:01]} Ba6 {[%emt 0:00:01]} 20. Rc2 {[%emt 0:00:04]} Rc8 {[%emt 0:00:13]} 21. Rcd2 {[%emt 0:00:12]} Rfe8 {[%emt 0:00:09]} 22. dxe5 {[%emt 0:00:09]} fxe5 {[%emt 0:00:08]} 23. Ba3 {[%emt 0:00:09]} Bf8 {[%emt 0:00:06]} 24. Rc2 {[%emt 0:00:05]} Red8 {[%emt 0:00:09]} 25. Bb2 {[%emt 0:00:10]} Bg7 {[%emt 0:00:10]} 26. Nc3 {[%emt 0:00:05]} Rd7 {[%emt 0:00:08]} 27. h4 {[%emt 0:00:11]} Rcd8 {[%emt 0:00:02]} 28. Na4 {[%emt 0:00:05]} Bb5 {[%emt 0:00:04]} 29. Ng5 {[%emt 0:00:06]} Nxg5 {[%emt 0:00:02]} 30. hxg5 {[%emt 0:00:01]} Bxa4 {[%emt 0:00:02]} 31. bxa4 {[%emt 0:00:01]} d5 {[%emt 0:00:05]} 32. Rxc6 {[%emt 0:00:06]} dxe4 {[%emt 0:00:02]} 33. Rxd7 {[%emt 0:00:03]} Rxd7 {[%emt 0:00:01]} 34. Rc5 {[%emt 0:00:15]} Rd1+ {[%emt 0:00:03]} 35. Kh2 {[%emt 0:00:01]} Rd2 {[%emt 0:00:02]} 36. Bxe5 {[%emt 0:00:04]} Bxe5+ {[%emt 0:00:01]} 37. Rxe5 {[%emt 0:00:01]} Rxf2 {[%emt 0:00:02]} 38. Rxe4 {[%emt 0:00:05]} Rxa2 {[%emt 0:00:02]} 39. Rb4 {[%emt 0:00:04]} a5 {[%emt 0:00:01]} 40. Rf4 {[%emt 0:00:03]} Ra3 {[%emt 0:00:02]} 41. Rc4 {[%emt 0:00:05]} h6 {[%emt 0:00:02]} 42. Rc8+ {[%emt 0:00:05]} Kg7 {[%emt 0:00:01]} 43. Rc7+ {[%emt 0:00:01]} Kh8 {[%emt 0:00:02]} 44. gxh6 {[%emt 0:00:05]} Rxa4 {[%emt 0:00:01]} 45. Kh3 {[%emt 0:00:03]} g5 {[%emt 0:00:01]} 46. Ra7 {[%emt 0:00:03]} Rh4+ {[%emt 0:00:02]} 47. Kg3 {[%emt 0:00:01]} Rxh6 {[%emt 0:00:01]} 48. Rxa5 {[%emt 0:00:01]} 1/2-1/2

[Event "RUS-ch Women Blitz 2019"]
[Site "Sochi"]
[Date "2019.10.17"]
[Round "5.11"]
[White "Garifullina, Leya"]
[Black "Vifleemskaia, Svetlana"]
[Result "1-0"]
[ECO "B01"]
[WhiteElo "2330"]
[BlackElo "1978"]
[Annotator "RC"]
[PlyCount "71"]
[EventDate "2019.10.17"]
[EventType "swiss"]
[EventCountry "RUS"]
[SourceTitle "playchess.com"]
[Source "ChessBase"]
[SourceQuality "1"]
[TimeControl "180+2"]

1. e4 d5 2. exd5 {[%emt 0:00:00]} Nf6 {[%emt 0:00:00]} 3. d4 {[%emt 0:00:02]} Bg4 {[%emt 0:00:00]} 4. f3 {[%emt 0:00:04]} Bf5 {[%emt 0:00:00]} 5. Bb5+ {[%emt 0:00:01]} Nbd7 {[%emt 0:00:07]} 6. c4 {[%emt 0:00:13]} e6 {[%emt 0:00:08]} 7. dxe6 {[%emt 0:00:02]} fxe6 {[%emt 0:00:01]} 8. Ne2 {[%emt 0:00:05]} c6 {[%emt 0:00:07]} 9. Ba4 {[%emt 0:00:02]} Bd6 {[%emt 0:00:13]} 10. Bf4 {[%emt 0:00:02]} Qc7 {[%emt 0:00:09]} 11. Bxd6 {[%emt 0:00:02]} Qxd6 {[%emt 0:00:01]} 12. Nbc3 {[%emt 0:00:04]} O-O {[%emt 0:00:10]} 13. O-O {[%emt 0:00:03]} e5 {[%emt 0:00:06]} 14. dxe5 {[%emt 0:00:03]} Qxe5 {[%emt 0:00:29]} 15. Bc2 {[%emt 0:00:07]} Bxc2 {[%emt 0:00:07]} 16. Qxc2 {[%emt 0:00:02]} Qc5+ {[%emt 0:00:00]} 17. Kh1 {[%emt 0:00:01]} Qxc4 {[%emt 0:00:01]} 18. Rad1 {[%emt 0:00:05]} Rad8 {[%emt 0:00:02]} 19. Rd4 {[%emt 0:00:01]} Qe6 {[%emt 0:00:15]} 20. Rfd1 {[%emt 0:00:01]} Rde8 {[%emt 0:00:07]} 21. Rd6 {[%emt 0:00:03]} Qe7 {[%emt 0:00:05]} 22. Qb3+ {[%emt 0:00:01]} Rf7 {[%emt 0:00:14]} 23. Qxb7 {[%emt 0:00:07]} Ne5 {[%emt 0:00:05]} 24. Qxe7 {[%emt 0:00:02]} Rfxe7 {[%emt 0:00:02]} 25. b3 {[%emt 0:00:04]} Nd5 {[%emt 0:00:10]} 26. Nxd5 {[%emt 0:00:03]} cxd5 {[%emt 0:00:01]} 27. Ng1 {[%emt 0:00:08]} Ng6 {[%emt 0:00:32]} 28. R6xd5 {[%emt 0:00:05]} Re1 {[%emt 0:00:02]} 29. h3 {[%emt 0:00:04]} Nf4 {[%emt 0:00:04]} 30. R5d2 {[%emt 0:00:02]} h6 {[%emt 0:00:11]} 31. Kh2 {[%emt 0:00:04]} a5 {[%emt 0:00:02]} 32. Rxe1 {[%emt 0:00:04]} Rxe1 {[%emt 0:00:01]} 33. Rd4 {[%emt 0:00:02]} g5 {[%emt 0:00:12]} 34. h4 {[%emt 0:00:03]} Rxg1 {[%emt 0:00:14]} 35. Rd8+ {[%emt 0:00:03]} Kf7 {[%emt 0:00:01]} 36. Kxg1 {[%emt 0:00:02]} 1-0